bitfinex/quotes_BTCUSD_20251024
["timestamp","ask_amount","ask_price","bid_price","bid_amount"]
[1761305638156,0.00174515,110660.0,110650.0,0.62376191]
[1761305638602,0.00174515,110660.0,110650.0,3.16476191]
[1761305638835,0.00174515,110660.0,110650.0,3.36476191]
[1761305639055,0.00174515,110660.0,110650.0,3.3747619]
[1761305639274,0.00174515,110660.0,110650.0,3.41994417]
[1761305639752,0.18071421,110730.0,110700.0,0.53370711]
[1761305639958,0.18071421,110730.0,110710.0,0.77857154]
[1761305640168,0.18071421,110730.0,110710.0,0.7638588]
[1761305640633,0.18071421,110730.0,110700.0,0.27951248]
[1761305640634,0.18063583,110720.0,110700.0,0.08981901]
[1761305640835,0.18965795,110720.0,110710.0,0.23016]
[1761305641052,0.00048302,110720.0,110710.0,0.76385921]
[1761305641306,0.00048302,110720.0,110710.0,0.50063116]
[1761305641537,0.18111885,110720.0,110710.0,0.67302607]
[1761305641943,0.18111885,110720.0,110710.0,0.31997901]
[1761305642164,0.00048302,110720.0,110710.0,0.50063116]
[1761305642597,0.00048302,110720.0,110710.0,0.85367822]
[1761305643230,0.00048302,110720.0,110710.0,1.20672528]
[1761305643455,0.00148302,110720.0,110710.0,3.20672528]
[1761305643665,0.00148302,110720.0,110710.0,3.40672528]
[1761305643882,0.00148302,110720.0,110710.0,2.85367822]
[1761305644095,0.00048302,110720.0,110710.0,2.85367822]
[1761305644318,0.00048302,110720.0,110710.0,3.05367822]
[1761305644540,0.00048302,110720.0,110710.0,3.40872528]
[1761305644791,0.00048302,110720.0,110710.0,3.41672527]
[1761305645000,0.00048302,110720.0,110710.0,3.42972526]
[1761305645214,0.00048302,110720.0,110710.0,3.46590754]
[1761305645415,0.00252988,110720.0,110710.0,3.46590754]
[1761305645649,0.00252988,110720.0,110710.0,2.52965342]
[1761305645857,0.00252988,110720.0,110710.0,3.60984526]
[1761305646067,0.00252988,110720.0,110710.0,3.43800526]
[1761305646280,0.00252988,110720.0,110710.0,3.06495822]
[1761305646503,0.00252988,110720.0,110710.0,3.24675821]
[1761305647377,0.00252988,110720.0,110710.0,3.24475821]
[1761305647585,0.00252988,110720.0,110710.0,3.44475821]
[1761305647850,0.00252988,110720.0,110710.0,3.44975821]
[1761305647851,0.00352988,110720.0,110710.0,3.44975821]
[1761305648031,0.00352988,110720.0,110710.0,3.24975821]
[1761305648641,0.00252988,110720.0,110710.0,3.24475821]
[1761305649080,0.00252988,110720.0,110710.0,3.23775822]
[1761305649298,0.00252988,110720.0,110710.0,3.80080527]
[1761305649729,0.00252988,110720.0,110710.0,3.84698754]
[1761305651243,0.18095465,110770.0,110760.0,0.1805706]
[1761305651244,0.0004,110770.0,110760.0,0.1805706]
[1761305651451,0.0004,110770.0,110760.0,0.8526624]
[1761305652072,0.0004,110770.0,110760.0,1.20570946]
[1761305652275,0.0004,110770.0,110760.0,1.54570946]
[1761305652400,0.0004,110770.0,110760.0,3.54570946]
[1761305652752,0.0014,110770.0,110760.0,3.54570946]
[1761305653054,0.0014,110770.0,110760.0,3.49778945]
[1761305653281,0.0004,110770.0,110760.0,3.73610945]
[1761305653391,0.0004,110770.0,110760.0,3.73710945]
[1761305653593,0.18956586,110850.0,110820.0,0.18047283]
[1761305653818,0.18946302,110840.0,110830.0,0.22896]
[1761305654023,0.1804409,110840.0,110830.0,0.22896]
[1761305654233,0.18044027,110840.0,110830.0,0.58200706]
[1761305654443,0.18044027,110840.0,110830.0,0.22896]
[1761305654651,0.18044027,110840.0,110820.0,0.53351922]
[1761305654872,0.18092388,110840.0,110830.0,0.22888]
[1761305655138,0.18092388,110840.0,110830.0,0.26089901]
[1761305655350,0.18092388,110840.0,110830.0,0.49911556]
[1761305655548,0.00048361,110840.0,110830.0,0.49911556]
[1761305655942,0.18092388,110840.0,110830.0,0.49911556]
[1761305656325,0.00048361,110840.0,110830.0,0.49911556]
[1761305656822,0.18092388,110840.0,110830.0,0.22872]
[1761305657167,0.18501204,110840.0,110830.0,0.22872]
[1761305657609,0.18501204,110840.0,110830.0,0.40917655]
[1761305658173,0.00457177,110840.0,110830.0,0.40917655]
[1761305658553,0.18501204,110840.0,110830.0,0.40917655]
[1761305658772,0.18045655,110830.0,110810.0,0.18046448]
[1761305658957,0.18994589,110840.0,110820.0,0.40895283]
[1761305659194,0.18045655,110830.0,110820.0,0.40895283]
[1761305659400,0.18045655,110830.0,110820.0,0.22848]
[1761305659613,0.18994589,110840.0,110820.0,0.40895283]
[1761305660029,0.18045655,110830.0,110820.0,0.40895283]
[1761305660248,0.18994589,110840.0,110820.0,0.40895283]
[1761305660466,0.18045655,110830.0,110820.0,0.40895283]
[1761305660676,0.18045655,110830.0,110820.0,0.22848]
[1761305660859,0.18045655,110830.0,110820.0,0.40895283]
[1761305661414,0.18145655,110830.0,110820.0,0.22848]
[1761305661849,0.18047283,110820.0,110800.0,0.18950052]
[1761305662066,0.18047283,110820.0,110810.0,0.05772]
[1761305662067,0.53351989,110820.0,110810.0,0.05772]
[1761305662288,0.18047283,110820.0,110810.0,0.22812]
[1761305662511,0.19048096,110830.0,110810.0,0.40860912]
[1761305662769,0.18145696,110830.0,110810.0,0.76165618]
[1761305662990,0.18145696,110830.0,110810.0,0.40860912]
[1761305663206,0.18145696,110830.0,110820.0,0.18047283]
[1761305663408,0.001,110830.0,110820.0,0.18047283]
[1761305663613,0.00048361,110840.0,110830.0,0.18045655]
[1761305663834,0.00048361,110840.0,110830.0,0.70378361]
[1761305664271,0.00048361,110840.0,110830.0,0.35073655]
[1761305664476,0.00457177,110840.0,110830.0,0.35073655]
[1761305664894,0.00457177,110840.0,110830.0,0.79360262]
[1761305665743,0.00457177,110840.0,110830.0,0.62332262]
[1761305666158,0.00457177,110840.0,110830.0,0.27027556]
[1761305666362,0.00457177,110840.0,110830.0,0.49815556]
[1761305666998,0.00457177,110840.0,110830.0,0.49915556]
[1761305667817,0.00457177,110840.0,110830.0,0.49815556]
[1761305668438,0.00457177,110840.0,110830.0,0.49811556]
[1761305669052,0.00457177,110840.0,110830.0,0.85116262]
[1761305670272,0.00457177,110840.0,110830.0,0.85084262]
[1761305670537,0.00457177,110840.0,110830.0,0.85184262]
[1761305670738,0.00457177,110840.0,110830.0,0.27127556]
[1761305670937,0.00457177,110840.0,110830.0,0.85184262]
[1761305671181,0.00457177,110840.0,110830.0,0.85084262]
[1761305671536,0.00457177,110840.0,110830.0,0.85184262]
[1761305672730,0.00457177,110840.0,110830.0,3.19184262]
[1761305673006,0.00457177,110840.0,110830.0,3.19160262]
[1761305673215,0.00457177,110840.0,110830.0,3.54464968]
[1761305673423,0.05,110860.0,110850.0,0.53347105]
[1761305673640,0.05,110860.0,110850.0,3.33281006]
[1761305674702,0.18074521,110900.0,110890.0,0.18035891]
[1761305674893,0.18089032,110900.0,110890.0,0.31119867]
[1761305675243,0.18089032,110900.0,110890.0,0.49155758]
[1761305675653,0.18089032,110900.0,110890.0,0.25347867]
[1761305675857,0.18089032,110900.0,110890.0,0.49155758]
[1761305676054,0.18037838,110880.0,110860.0,0.18040749]
[1761305676257,0.18038664,110890.0,110870.0,0.86877636]
[1761305676474,0.18037518,110880.0,110870.0,0.31729901]
[1761305677158,0.18037518,110880.0,110870.0,0.49769045]
[1761305677360,0.18940458,110890.0,110870.0,0.49769045]
[1761305677749,0.18037518,110880.0,110870.0,0.49869045]
[1761305677994,0.18037518,110880.0,110870.0,0.31829901]
[1761305678210,0.18037518,110880.0,110870.0,0.31809901]
[1761305678484,0.18037518,110880.0,110870.0,0.49849045]
[1761305679697,0.18037518,110880.0,110870.0,0.49749045]
[1761305680045,0.18173668,110880.0,110870.0,0.49729045]
[1761305680469,0.18173668,110880.0,110870.0,0.49709045]
[1761305680907,0.18173668,110880.0,110870.0,0.31669901]
[1761305681250,0.18039144,110870.0,110860.0,0.18039917]
[1761305681455,0.18037518,110880.0,110860.0,0.49729818]
[1761305681677,0.00102122,110870.0,110860.0,0.49729818]
[1761305682299,0.18141266,110870.0,110860.0,0.62326524]
[1761305682489,0.18141266,110870.0,110860.0,0.49713818]
[1761305682490,0.00102122,110870.0,110860.0,0.49713818]
[1761305682934,0.00102122,110870.0,110860.0,0.27021818]
[1761305683124,0.00102122,110870.0,110860.0,0.49713818]
[1761305683269,0.00102122,110870.0,110860.0,0.49813818]
[1761305683912,0.18141266,110870.0,110860.0,0.49813818]
[1761305684524,0.00102122,110870.0,110860.0,0.49813818]
[1761305684876,0.19043478,110870.0,110860.0,0.001]
[1761305685123,0.18141266,110870.0,110860.0,0.17016]
[1761305686019,0.18141266,110870.0,110860.0,0.16916]
[1761305686227,0.18241266,110870.0,110860.0,0.16916]
[1761305686643,0.18042092,110860.0,110840.0,0.18944762]
[1761305686860,0.18042092,110860.0,110850.0,0.31641901]
[1761305688126,0.18042399,110850.0,110840.0,0.19044762]
[1761305688401,0.18042399,110850.0,110840.0,0.50666663]
[1761305689053,0.18042399,110850.0,110840.0,0.001]
[1761305689319,0.18042399,110850.0,110840.0,0.22636]
[1761305689747,0.18044027,110840.0,110830.0,40.0]
[1761305690000,0.18044027,110840.0,110830.0,40.31613901]
[1761305690422,0.18044027,110840.0,110830.0,40.49659556]
[1761305690953,0.18044027,110840.0,110830.0,40.08981901]
[1761305691199,0.18044027,110840.0,110830.0,40.49651556]
[1761305691782,0.18044027,110840.0,110830.0,40.31605901]
[1761305691983,0.18044027,110840.0,110830.0,40.08981901]
[1761305692160,0.18044027,110840.0,110830.0,40.49647556]
[1761305693808,0.18044027,110840.0,110830.0,40.43879556]
[1761305693986,0.18044027,110840.0,110830.0,40.49623556]
[1761305694397,0.18044027,110840.0,110830.0,40.27027556]
[1761305694593,0.18044027,110840.0,110830.0,40.49623556]
[1761305694821,0.18044027,110840.0,110830.0,40.27027556]
[1761305694992,0.18044027,110840.0,110830.0,40.49619556]
[1761305696579,0.22306446,110850.0,110830.0,40.49619556]
[1761305696754,0.22306446,110850.0,110840.0,0.2883033]
[1761305696981,0.22306446,110850.0,110840.0,0.08981901]
[1761305697175,0.22306446,110850.0,110840.0,0.27025928]
[1761305698076,0.04264047,110850.0,110840.0,0.27025928]
[1761305698283,0.22306446,110850.0,110840.0,0.27025928]
[1761305698852,0.04264047,110850.0,110840.0,0.27025928]
[1761305699052,0.22306446,110850.0,110840.0,0.27025928]
[1761305699253,0.04264047,110850.0,110840.0,0.27025928]
[1761305699792,0.04264047,110850.0,110840.0,0.81026947]
[1761305700407,0.22306446,110850.0,110840.0,0.27025928]
[1761305700872,0.22306446,110850.0,110840.0,0.49573928]
[1761305701085,0.04264047,110850.0,110840.0,0.49673928]
[1761305701473,0.04264047,110850.0,110840.0,1.37674947]
[1761305701710,0.04264047,110850.0,110840.0,1.37666947]
[1761305701944,0.04264047,110850.0,110840.0,1.41285175]
[1761305702154,0.001,110880.0,110870.0,0.72040163]
[1761305702354,0.00114509,110880.0,110870.0,1.03570064]
[1761305702690,0.00114509,110880.0,110870.0,0.49569045]
[1761305703704,0.18152027,110880.0,110870.0,0.09081901]
[1761305703927,0.18152027,110880.0,110870.0,0.31613901]
[1761305704125,0.00114509,110880.0,110870.0,0.49653045]
[1761305704750,0.00114509,110880.0,110870.0,0.43881045]
[1761305704958,0.00114509,110880.0,110870.0,0.49649045]
[1761305705350,0.18152027,110880.0,110870.0,0.31609901]
[1761305705553,0.18152027,110880.0,110870.0,0.49641045]
[1761305705764,0.18152027,110880.0,110870.0,0.09081901]
[1761305705932,0.18152027,110880.0,110870.0,0.31505901]
[1761305706132,0.18152027,110880.0,110870.0,0.49545045]
[1761305706351,0.18252027,110880.0,110870.0,0.49545045]
[1761305706728,0.18152027,110880.0,110870.0,0.49545045]
[1761305706908,0.17542653,110890.0,110870.0,0.49545045]
[1761305707145,0.18037518,110880.0,110870.0,0.49545045]
[1761305707349,0.18037518,110880.0,110870.0,0.08981901]
[1761305707549,0.18137518,110880.0,110870.0,0.31501901]
[1761305707764,0.18037518,110880.0,110870.0,0.31501901]
[1761305707967,0.18139625,110880.0,110870.0,0.31501901]
[1761305708360,0.18139625,110880.0,110870.0,0.49525045]
[1761305708569,0.18139625,110880.0,110870.0,0.49521045]
[1761305709024,0.18139625,110880.0,110870.0,0.49517045]
[1761305709203,0.00102107,110880.0,110870.0,0.49517045]
[1761305709410,0.18139625,110880.0,110870.0,0.27021045]
[1761305709631,0.18139625,110880.0,110870.0,0.49513045]
[1761305709774,0.00202107,110880.0,110870.0,0.49513045]
[1761305710190,0.18239625,110880.0,110870.0,0.49513045]
[1761305711094,0.18037518,110880.0,110870.0,0.49513045]
[1761305712289,0.18037518,110880.0,110870.0,0.49509045]
[1761305712542,0.18037518,110880.0,110870.0,0.49493045]
[1761305713703,0.18037518,110880.0,110870.0,0.27021045]
[1761305713959,0.18037518,110880.0,110870.0,0.49481045]
[1761305714489,0.18037518,110880.0,110870.0,0.25673901]
[1761305714695,0.18037518,110880.0,110860.0,0.18039302]
[1761305714889,0.18037518,110880.0,110870.0,0.22452]
[1761305716020,0.18039144,110870.0,110860.0,0.27135712]
[1761305716232,0.18039144,110870.0,110860.0,0.49479712]
[1761305716431,0.1758879,110880.0,110860.0,0.49479712]
[1761305716643,0.18039144,110870.0,110860.0,0.1476441]
[1761305716851,0.18039144,110870.0,110860.0,0.49481182]
[1761305718058,0.18039144,110870.0,110860.0,0.00014509]
[1761305718297,0.72040163,110870.0,110860.0,0.05782509]
[1761305718517,0.18039144,110870.0,110860.0,0.22442509]
[1761305718738,0.72040163,110870.0,110860.0,0.22542509]
[1761305718949,0.72040163,110870.0,110860.0,0.22442509]
[1761305719164,0.72040163,110870.0,110860.0,0.16674509]
[1761305719659,0.72040163,110870.0,110860.0,0.16666509]
[1761305719660,1.06040163,110870.0,110860.0,0.16666509]
[1761305719877,1.06140163,110870.0,110860.0,0.16666509]
[1761305720108,1.06140163,110870.0,110860.0,0.00014509]
[1761305720545,0.88301019,110870.0,110860.0,0.00014509]
[1761305720776,1.06340163,110870.0,110860.0,0.00014509]
[1761305721030,1.18940292,110870.0,110860.0,0.00014509]
[1761305721245,1.35584292,110870.0,110860.0,0.00014509]
[1761305721473,1.36483167,110870.0,110830.0,40.0]
[1761305721698,1.06045046,110840.0,110830.0,40.0]
[1761305722403,0.52044027,110840.0,110830.0,40.0]
[1761305723463,0.52044027,110840.0,110830.0,40.1664]
[1761305723681,0.52344027,110840.0,110830.0,40.0]
[1761305723903,0.52344027,110840.0,110830.0,40.1664]
[1761305724331,0.52244027,110840.0,110830.0,40.1664]
[1761305724975,0.52044027,110840.0,110830.0,40.0]
[1761305725160,0.52144027,110840.0,110830.0,40.16636]
[1761305727584,0.52144027,110840.0,110830.0,40.16628]
[1761305732302,0.18144027,110840.0,110830.0,40.16628]
[1761305733572,0.18144027,110840.0,110830.0,40.40445655]
[1761305734442,0.001,110840.0,110830.0,40.40445655]
[1761305734649,0.18044027,110840.0,110830.0,40.40445655]
[1761305735698,0.18044027,110840.0,110830.0,40.224]
[1761305735917,0.18043837,110850.0,110830.0,40.49427556]
[1761305736144,0.18043837,110850.0,110840.0,0.19848429]
[1761305736367,0.5294559,110860.0,110850.0,0.18042399]
[1761305736368,0.18041,110860.0,110850.0,0.18042399]
[1761305736584,0.18041,110860.0,110850.0,0.1656]
[1761305737033,0.18041,110860.0,110850.0,0.34602399]
[1761305737263,0.1895568,110870.0,110850.0,0.435843]
[1761305737475,0.1895568,110870.0,110860.0,0.18040772]
[1761305739121,0.00014579,110870.0,110860.0,0.32794673]
[1761305739325,0.18053723,110870.0,110860.0,0.32794673]
[1761305739698,0.00014579,110870.0,110860.0,0.32794673]
[1761305739907,0.18053723,110870.0,110860.0,0.32794673]
[1761305742790,0.00014579,110870.0,110860.0,0.32794673]
[1761305743437,0.18053723,110870.0,110860.0,0.32794673]
[1761305744089,0.00014579,110870.0,110860.0,0.32794673]
[1761305745164,0.18053723,110870.0,110860.0,0.32794673]
[1761305745846,0.00014579,110870.0,110860.0,0.32794673]
[1761305746403,0.18053723,110870.0,110860.0,0.32794673]
[1761305746531,0.00014579,110870.0,110860.0,0.32794673]
[1761305748291,0.00014579,110870.0,110860.0,0.27022673]
[1761305748727,0.00014579,110870.0,110860.0,0.001]
[1761305748931,0.18053723,110870.0,110860.0,0.16508]
[1761305749363,0.18053723,110870.0,110860.0,0.16608]
[1761305749571,0.18053723,110870.0,110860.0,0.34648772]
[1761305750174,0.00014579,110870.0,110860.0,0.34648772]
[1761305750740,0.00014579,110870.0,110860.0,0.34948772]
[1761305750945,0.00014579,110870.0,110860.0,0.34548772]
[1761305751558,0.18053723,110870.0,110860.0,0.34548772]
[1761305751973,0.00014579,110870.0,110860.0,0.34548772]
[1761305752748,0.18053723,110870.0,110850.0,0.18041642]
[1761305752963,0.18040772,110860.0,110850.0,0.18042363]
[1761305753173,0.18053723,110870.0,110850.0,0.40310363]
[1761305753317,0.18040772,110860.0,110850.0,0.40310363]
[1761305754813,0.18040772,110860.0,110850.0,0.34542363]
[1761305755035,0.18040772,110860.0,110850.0,0.18042363]
[1761305755265,0.18040772,110860.0,110850.0,0.34530363]
[1761305757035,0.18040772,110860.0,110850.0,0.18042363]
[1761305757252,0.18040772,110860.0,110850.0,0.34522363]
[1761305758866,0.18053723,110870.0,110860.0,0.18040772]
[1761305759131,0.18053723,110870.0,110860.0,0.34520772]
[1761305761470,0.00014579,110870.0,110860.0,0.34520772]
[1761305761928,0.00114579,110870.0,110860.0,0.34520772]
[1761305762333,0.00014579,110870.0,110860.0,0.34520772]
[1761305762761,0.00014579,110870.0,110860.0,0.43502673]
[1761305766272,0.00014579,110870.0,110860.0,0.78639662]
[1761305766677,0.00014579,110870.0,110860.0,0.43502673]
[1761305768673,0.00014579,110870.0,110860.0,0.43602673]
[1761305770788,0.00014579,110870.0,110860.0,0.27122673]
[1761305770999,0.00014579,110870.0,110860.0,0.49370673]
[1761305772872,0.00014579,110870.0,110860.0,0.58041204]
[1761305773294,0.00014579,110870.0,110860.0,0.80285204]
[1761305774694,0.00014579,110870.0,110860.0,0.49366673]
[1761305774938,0.00014579,110870.0,110860.0,0.80285204]
[1761305776152,0.00014579,110870.0,110860.0,1.11203735]
[1761305780595,0.00014579,110870.0,110860.0,0.88959735]
[1761305780795,0.00014579,110870.0,110860.0,1.11203735]
[1761305783382,0.00014579,110870.0,110860.0,1.45203735]
[1761305783816,0.00014579,110870.0,110860.0,1.76122266]
[1761305784042,0.00014579,110870.0,110860.0,3.76122266]
[1761305784277,1e-08,110870.0,110860.0,3.81729739]
[1761305784495,1e-08,110870.0,110860.0,3.81629739]
[1761305784952,1e-08,110870.0,110860.0,3.57696494]
[1761305785139,1e-08,110870.0,110860.0,3.79936494]
[1761305785357,1e-08,110870.0,110860.0,3.57696494]
[1761305785558,1e-08,110870.0,110860.0,3.79736494]
[1761305785982,1e-08,110870.0,110860.0,3.57896494]
[1761305786220,1e-08,110870.0,110860.0,3.80136494]
[1761305786435,1e-08,110870.0,110860.0,3.80236494]
[1761305786883,1e-08,110870.0,110860.0,3.81236493]
[1761305787107,1e-08,110870.0,110860.0,3.86340613]
[1761305787324,1e-08,110870.0,110860.0,4.15144268]
[1761305787768,1e-08,110870.0,110860.0,4.2322711]
[1761305788018,1e-08,110870.0,110860.0,4.85424963]
[1761305788441,1e-08,110870.0,110860.0,4.83435718]
[1761305788912,1e-08,110870.0,110860.0,4.82835718]
[1761305789183,1e-08,110870.0,110860.0,4.83335718]
[1761305789383,1e-08,110870.0,110860.0,4.83535718]
[1761305789607,1e-08,110870.0,110860.0,4.85524963]
[1761305789836,1e-08,110870.0,110860.0,4.83535718]
[1761305790289,1e-08,110870.0,110860.0,3.87540126]
[1761305790552,1e-08,110870.0,110860.0,3.41478265]
[1761305790764,1e-08,110870.0,110860.0,3.97714265]
[1761305790974,1e-08,110870.0,110860.0,3.67332493]
[1761305791188,1e-08,110870.0,110860.0,4.01332493]
[1761305791405,1e-08,110870.0,110860.0,3.66632493]
[1761305791610,1e-08,110870.0,110860.0,4.00632493]
[1761305791878,1e-08,110870.0,110860.0,3.78796493]
[1761305792083,1e-08,110870.0,110860.0,4.01032493]
[1761305793980,1e-08,110870.0,110860.0,4.00032494]
[1761305794191,1e-08,110870.0,110860.0,4.01032493]
[1761305794626,1e-08,110870.0,110860.0,4.31951024]
[1761305794832,1e-08,110870.0,110860.0,4.01032493]
[1761305796314,1e-08,110870.0,110860.0,0.860409]
[1761305796554,1e-08,110870.0,110860.0,0.74805204]
[1761305796769,1e-08,110870.0,110860.0,1.05723735]
[1761305797044,0.0004,110900.0,110890.0,0.52035891]
[1761305797256,0.00048771,110900.0,110890.0,1.45086854]
[1761305798193,0.00048771,110900.0,110890.0,0.83249792]
[1761305798420,0.00048771,110900.0,110890.0,1.14168323]
[1761305798605,0.00048771,110900.0,110890.0,1.45086854]
[1761305798824,0.00048771,110900.0,110890.0,1.18351091]
[1761305799442,0.00048771,110900.0,110890.0,1.18551091]
[1761305802665,0.00082794,110900.0,110890.0,1.18551091]
[1761305803919,0.00082794,110900.0,110890.0,0.83449792]
[1761305804124,0.39360792,110950.0,110890.0,3.18551091]
[1761305804328,0.05014588,110950.0,110940.0,0.35101299]
[1761305804649,0.05014588,110950.0,110940.0,0.49237663]
[1761305804862,0.05014588,110950.0,110940.0,0.27009663]
[1761305805033,0.05014588,110950.0,110940.0,0.49233663]
[1761305805442,0.05014588,110950.0,110940.0,0.84334962]
[1761305805617,0.05114588,110950.0,110940.0,0.84334962]
[1761305807945,0.05014588,110950.0,110940.0,0.84334962]
[1761305808350,0.05114588,110950.0,110940.0,0.84334962]
[1761305808577,0.05014588,110950.0,110940.0,0.84334962]
[1761305808778,0.05014588,110950.0,110940.0,1.03129116]
[1761305808979,0.05114588,110950.0,110940.0,1.03129116]
[1761305810016,0.05284622,110950.0,110940.0,1.03129116]
[1761305811285,0.05284622,110950.0,110930.0,0.18029387]
[1761305811498,0.27660317,110950.0,110940.0,0.16452]
[1761305811712,0.24042089,110950.0,110940.0,0.16452]
[1761305812132,0.23942089,110950.0,110940.0,0.16452]
[1761305812473,0.24142089,110950.0,110940.0,0.16452]
[1761305812677,0.23942089,110950.0,110940.0,0.16452]
[1761305812992,0.24242089,110950.0,110940.0,0.16452]
[1761305815479,0.0379003,110950.0,110940.0,3.47357116]
[1761305815702,0.0504,110960.0,110950.0,0.18026137]
[1761305815953,0.0504,110960.0,110950.0,0.27008038]
[1761305815954,0.05088607,110960.0,110950.0,0.27008038]
[1761305816169,0.05088607,110960.0,110950.0,0.49220038]
[1761305816613,0.05088607,110960.0,110950.0,1.03115491]
[1761305817512,0.05088607,110960.0,110950.0,1.03215491]
[1761305817927,0.05292629,110960.0,110950.0,1.03115491]
[1761305818158,0.05292629,110960.0,110950.0,1.03215491]
[1761305818615,0.05292629,110960.0,110950.0,1.03315491]
[1761305824989,0.05292629,110960.0,110950.0,0.81103491]
[1761305825454,0.05292629,110960.0,110950.0,1.03307491]
[1761305826530,0.05292629,110960.0,110950.0,0.49412038]
[1761305827016,0.05292629,110960.0,110950.0,1.03307491]
[1761305829790,0.18960741,110990.0,110980.0,0.18021265]
[1761305829791,0.0004,110990.0,110980.0,0.18021265]
[1761305830029,0.00054573,110990.0,110980.0,0.40221265]
[1761305831182,0.00254573,110990.0,110980.0,0.40221265]
[1761305831609,0.19857146,111010.0,110980.0,0.40221265]
[1761305831813,0.18920425,111000.0,110990.0,0.18019641]
[1761305832035,0.18018213,111000.0,110990.0,0.18019641]
[1761305832882,0.19857146,111010.0,110990.0,0.18019641]
[1761305833502,0.53857146,111010.0,111000.0,0.16436]
[1761305834599,0.54157146,111010.0,111000.0,0.16436]
[1761305834954,0.54157146,111010.0,111000.0,0.34454018]
[1761305835165,0.54157146,111010.0,111000.0,0.16436]
[1761305835620,0.54257146,111010.0,111000.0,0.34454018]
[1761305835997,0.37274302,111010.0,111000.0,0.34454018]
[1761305836208,0.34469896,111010.0,111000.0,0.34454018]
[1761305836407,0.5258629,111010.0,111000.0,0.34454018]
[1761305836855,0.34169896,111010.0,111000.0,0.34454018]
[1761305837059,0.5218629,111010.0,111000.0,0.34454018]
[1761305837233,0.34169896,111010.0,111000.0,0.34454018]
[1761305837441,0.5218629,111010.0,111000.0,0.34454018]
[1761305837648,0.34169896,111010.0,111000.0,0.34454018]
[1761305837883,0.5218629,111010.0,111000.0,0.34454018]
[1761305838082,0.34169896,111010.0,111000.0,0.34454018]
[1761305838846,0.00169896,111010.0,111000.0,0.34454018]
[1761305839462,0.1818629,111010.0,111000.0,0.34454018]
[1761305842685,0.50639137,111020.0,111000.0,0.34454018]
[1761305842897,0.18016394,111010.0,111000.0,0.34454018]
[1761305843110,0.50639137,111020.0,111000.0,0.34454018]
[1761305843321,0.18016394,111010.0,111000.0,0.34454018]
[1761305845041,0.18016394,111010.0,111000.0,0.16436]
[1761305845257,0.18016394,111010.0,111000.0,0.18018018]
[1761305845449,0.19952128,111010.0,111000.0,0.34446018]
[1761305845942,0.01935734,111010.0,111000.0,0.34446018]
[1761305846156,0.19952128,111010.0,111000.0,0.34446018]
[1761305846371,0.18016394,111010.0,111000.0,0.16428]
[1761305846571,0.19952037,111010.0,111000.0,0.34446018]
[1761305846906,0.19952037,111010.0,111000.0,0.18018018]
[1761305847098,0.19952037,111010.0,111000.0,0.34442018]
[1761305847582,0.01935643,111010.0,111000.0,0.34442018]
[1761305847749,0.50639137,111020.0,111000.0,0.34442018]
[1761305848025,0.35935718,111020.0,111000.0,0.34442018]
[1761305848236,0.52015092,111020.0,111000.0,0.34442018]
[1761305848357,0.18016394,111010.0,111000.0,0.34442018]
[1761305848557,0.52015092,111020.0,111000.0,0.34442018]
[1761305848769,0.53950785,111020.0,111000.0,0.34442018]
[1761305849180,0.53950785,111020.0,111010.0,0.18016394]
[1761305849401,0.52015092,111020.0,111010.0,0.18016394]
[1761305849601,0.52015092,111020.0,111000.0,0.34442018]
[1761305849816,0.53984802,111020.0,111000.0,0.34442018]
[1761305850651,0.54084802,111020.0,111000.0,0.34442018]
[1761305850862,0.53984802,111020.0,111000.0,0.34442018]
[1761305851069,0.53984709,111020.0,111000.0,0.34442018]
[1761305851314,0.5204906,111020.0,111000.0,0.34442018]
[1761305851516,0.53984722,111020.0,111000.0,0.34442018]
[1761305852333,0.5204906,111020.0,111000.0,0.34442018]
[1761305852590,0.53984841,111020.0,111000.0,0.34442018]
[1761305855672,0.53984841,111020.0,111010.0,0.18016394]
[1761305855885,0.53984841,111020.0,111000.0,0.34442018]
[1761305856842,0.54084841,111020.0,111000.0,0.34442018]
[1761305857055,0.53984841,111020.0,111000.0,0.34442018]
[1761305857257,0.18016394,111010.0,111000.0,0.34442018]
[1761305858553,0.5204906,111020.0,111000.0,0.34442018]
[1761305858753,0.53986246,111020.0,111000.0,0.34442018]
[1761305859283,0.18016394,111010.0,111000.0,0.34442018]
[1761305860504,0.5204906,111020.0,111000.0,0.34442018]
[1761305860675,0.18016394,111010.0,111000.0,0.34442018]
[1761305860911,0.18016394,111010.0,111000.0,0.16416]
[1761305861266,0.18016394,111010.0,111000.0,0.34434018]
[1761305861585,0.18016394,111010.0,111000.0,0.16416]
[1761305863231,0.18116394,111010.0,111000.0,0.164435]
[1761305866547,0.4896282,111010.0,111000.0,0.000275]
[1761305866758,0.18116394,111010.0,111000.0,0.000275]
[1761305866900,0.4896282,111010.0,111000.0,0.000275]
[1761305867713,0.18116394,111010.0,111000.0,0.000275]
[1761305867915,0.4896282,111010.0,111000.0,0.000275]
[1761305868979,0.18116394,111010.0,111000.0,0.000275]
[1761305870841,0.48966934,111010.0,111000.0,0.000275]
[1761305872181,0.18116394,111010.0,111000.0,0.000275]
[1761305872396,0.48966934,111010.0,111000.0,0.000275]
[1761305874231,0.48966934,111010.0,111000.0,0.000375]
[1761305876677,0.18116394,111010.0,111000.0,0.000375]
[1761305879174,0.48966934,111010.0,111000.0,0.000375]
[1761305879858,1.28356274,111010.0,111000.0,0.000375]
[1761305880074,0.97505734,111010.0,111000.0,0.000375]
[1761305880506,1.28356274,111010.0,111000.0,0.000375]
[1761305881420,1.28256274,111010.0,111000.0,0.000375]
[1761305881832,1.28556274,111010.0,111000.0,0.000375]
[1761305882261,1.36556274,111010.0,111000.0,0.000375]
[1761305882479,1.28556274,111010.0,111000.0,0.000375]
[1761305882809,1.28656274,111010.0,111000.0,0.000375]
[1761305885330,1.31079696,111010.0,111000.0,0.000375]
[1761305885705,1.33784554,111010.0,111000.0,0.000375]
[1761305886497,1.31079696,111010.0,111000.0,0.000375]
[1761305887420,1.48079696,111010.0,111000.0,0.000375]
[1761305889142,0.86378616,111010.0,111000.0,0.000375]
[1761305889371,1.45656274,111010.0,111000.0,0.000375]
[1761305892309,1.55148274,111010.0,111000.0,0.000375]
[1761305892533,1.45656274,111010.0,111000.0,0.000375]
[1761305894660,1.14805734,111010.0,111000.0,0.000375]
[1761305895327,1.45656274,111010.0,111000.0,0.000375]
[1761305895958,1.14805734,111010.0,111000.0,0.000375]
[1761305896346,1.45656274,111010.0,111000.0,0.000375]
[1761305898581,1.48079696,111010.0,111000.0,0.000375]
[1761305900080,1.87912137,111010.0,111000.0,0.000375]
[1761305900288,1.89811011,111010.0,111000.0,0.000375]
[1761305900492,1.78743726,111010.0,111000.0,0.000375]
[1761305901127,0.7631133,111010.0,111000.0,0.000375]
[1761305901332,1.69661825,111010.0,111000.0,0.000375]
[1761305901551,1.69861825,111010.0,111000.0,0.000375]
[1761305902387,1.86861825,111010.0,111000.0,0.000375]